Cogmind - Beta 16 @@@ ROGUE MODE // 2025.12.16 @ 11:33:29 Player: Kathisto Result: Self-destructed Performance ------------- Evolutions (1) 500 Regions Visited (2) 400 Robots Destroyed (25) 125 Value Destroyed (545) 545 Prototype IDs (0) 0 Alien Tech Used (0) 0 Bonus (0) 0 TOTAL SCORE: 1570 Bonus ------- None Cogmind --------- Core Integrity 400/400 Matter 247/300 Energy 99/100 System Corruption 0% Temperature Cool (0) Movement Core (50) Location -9/Materials Parts ------- > --- POWER (1) -------- (None) > --- PROPULSION (2) --- (None) > --- UTILITY (2) ------ (None) > --- WEAPON (4) ------- (None) > --- INVENTORY (5) ---- Ion Engine Heat Sink Improved Heat Sink Small Storage Unit Light Assault Rifle Peak State ------------ > --- POWER ------------ Light Ion Engine > --- PROPULSION ------- Wheel Compact Wheel > --- UTILITY ---------- Large Storage Unit Seismic Detector > --- WEAPON ----------- Light Assault Rifle Light Assault Rifle > --- INVENTORY -------- Ion Engine Wheel Compact Wheel Small Storage Unit Seismic Detector EM Pulse Gun Medium Laser Light Assault Rifle Light Assault Rifle Light Assault Rifle [Rating: 8] Favorites ----------- Power Ion Engine Engine Ion Engine Propulsion Compact Wheel Wheel Compact Wheel Utility Seismic Detector Device Seismic Detector Storage Large Storage Unit Weapon Light Assault Rifle Energy Gun Medium Laser Ballistic Gun Light Assault Rifle Build | -11 -10 -9 ------- Run | Yrd Mat Mat Slots Evolved 2 | . . 2 Power . | . . . Propulsion . | . . . Utility . | . . . Weapon 2 | . . 2 Parts Attached 17 | 7 10 . Power 3 | 1 2 . Engine 3 | 1 2 . Core . | . . . Reactor . | . . . Propulsion 5 | 2 3 . Treads . | . . . Leg . | . . . Wheel 5 | 2 3 . Hover . | . . . Flight . | . . . Utility 4 | 2 2 . Device 2 | 1 1 . Storage 2 | 1 1 . Processor . | . . . Hackware . | . . . Protection . | . . . Artifact . | . . . Weapon 5 | 2 3 . Energy Gun 1 | 1 . . Energy Cannon . | . . . Ballistic Gun 4 | 1 3 . Ballistic Cannon . | . . . Launcher . | . . . Special Weapon . | . . . Impact Weapon . | . . . Slashing Weapon . | . . . Piercing Weapon . | . . . Special Melee Weapon . | . . . Unidentified Prototypes . | . . . Parts Lost 9 | . 9 . Power 1 | . 1 . Propulsion 5 | . 5 . Utility 1 | . 1 . Weapon 2 | . 2 . Highest Loss Streak 5 | . 5 . To Critical Strikes . | . . . Average Backups 7 | . 8 5 Power . | . . 1 Propulsion 1 | . 1 . Utility 1 | . 1 3 Weapon 3 | . 4 1 Tool/Special . | . . . Unused Backups 6 | . 3 3 Power . | . . . Propulsion . | . . . Utility 2 | . . 2 Weapon 4 | . 3 1 Tool/Special . | . . . Average Slot Usage (%) 92 | . 93 . Engine 11 | . 12 . Wheel 25 | . 25 . Device 13 | . 13 . Storage 13 | . 13 . Energy Gun 1 | . 1 . Ballistic Gun 25 | . 26 . Peak Build Rating 8 | 7 8 . Average Rating 6 | 5 7 . On Entrance 2 | . 7 . Avg Prop Armor Cover (%) . | . . . Naked Turns 14 | . 12 2 Heaviest Build 28 | 14 28 . Greatest Support 26 | 26 26 3 Greatest Overweight (x) 1 | . 1 . Average Overweight (x) . | . . . Largest Inventory Capacity 15 | 8 15 5 Average Capacity 13 | 7 14 5 Most Carried 14 | 2 14 5 Average Carried 7 | . 8 5 Final Capacity 8 | 8 5 5 Final Carried 5 | 2 5 5 Class Distribution -------------------- 100% | Mutant Dominant Class ---------------- Mutant | -10/Materials Mutant | -9/Materials Resources | -11 -10 -9 ----------- Run | Yrd Mat Mat Matter Collected 542 | 277 265 . Remotely . | . . . Salvage Created 909 | 96 813 . Parts 59 | 9 50 . Haulers Intercepted 1 | . 1 . Recyclers Shooed 6 | 1 5 . Parts Field Recycled . | . . . Retrieved Matter . | . . . Parts Self-Destructed . | . . . Prevented . | . . . Parts Restored . | . . . Kills | -11 -10 -9 ------- Run | Yrd Mat Mat Combat Hostiles Destroyed 17 | . 17 . Guns 17 | . 17 . Classes Destroyed 7 | 2 5 . Worker 1 | . 1 . Tunneler 2 | 1 1 . Hauler 1 | . 1 . Recycler 2 | 1 1 . Watcher 2 | . 2 . Swarmer 5 | . 5 . Grunt 12 | . 12 . Best Kill Streak 4 | 1 4 . Combat Bots Only 3 | . 3 . Max Kills in Single Turn 1 | 1 1 . Gunslinging . | . . . Exploded . | . . . Melee . | . . . Uniques/NPCs Destroyed . | . . . Combat | -11 -10 -9 -------- Run | Yrd Mat Mat Hostile Shots Fired 115 | . 115 . Missed 39 | . 39 . Hits 76 | . 76 . Projectile 76 | . 76 . Critical Strikes 2 | . 2 . Damage Taken 878 | 1 877 . Core 219 | . 219 . Absorbed by Shields . | . . . Core Remaining (%) 56 | 100 12 . Volleys Fired 117 | 7 110 . Largest 2 | 2 2 . Hottest 70 | 70 70 . Shots Fired 234 | 14 220 . Gun 234 | 14 220 . Cannon . | . . . Launcher . | . . . Special . | . . . Kinetic 220 | 7 213 . Thermal 14 | 7 7 . Explosive . | . . . Electromagnetic . | . . . Robot Hit Streak 13 | 4 13 . Robot Miss Streak 5 | 2 5 . Penetration Max . | . . . Secondary Targets . | . . . Shots Hit Robots 142 | 7 135 . Core Hits 64 | 4 60 . Critical Kills . | . . . Critical Parts Destroyed . | . . . Critical Strikes 1 | 1 . . Burn 1 | 1 . . Melee Attacks . | . . . Impact . | . . . Slashing . | . . . Piercing . | . . . Sneak Attacks . | . . . Combat Hostiles . | . . . Follow-up Attacks . | . . . Damage Inflicted 1203 | 79 1124 . Guns 1200 | 76 1124 . Cannons . | . . . Explosions . | . . . Melee . | . . . Ramming 3 | 3 . . Kinetic 1100 | 27 1073 . Thermal 100 | 49 51 . Explosive . | . . . Electromagnetic . | . . . Impact . | . . . Slashing . | . . . Piercing . | . . . Highest Corruption . | . . . Average Corruption . | . . . Corruption Purged . | . . . Corruption Blocked . | . . . Overload Shots . | . . . Overflow Damage . | . . . Projectiles . | . . . Explosions . | . . . Melee . | . . . Knockbacks . | . . . Impact . | . . . Kinetic . | . . . Secondary . | . . . Self-Inflicted Damage 1 | 1 . . Shots . | . . . Rammed 1 | 1 . . Targets Rammed 1 | 1 . . Kicked . | . . . Crushed . | . . . Highest Temperature 130 | 120 130 . Average Temperature 34 | 57 28 . Received Heat Transfer 459 | . 459 . Siege Activations . | . . . Martial Activations . | . . . Shielding Activations . | . . . Robots Disrupted . | . . . Combat Hostiles . | . . . Robots Corrupted . | . . . Combat Hostiles . | . . . Parts Fried . | . . . Impact Corruptions . | . . . Robots Melted . | . . . Combat Hostiles . | . . . Parts Melted . | . . . Heat Transferred 370 | 222 148 . Parts Sabotaged . | . . . Parts Stolen . | . . . Parts Stripped . | . . . Power Chain Reactions . | . . . Alert | -11 -10 -9 ------- Run | Yrd Mat Mat Maximum Alert Level . | . . . Low Security (%) 100 | 100 100 100 Level 1 . | . . . Level 2 . | . . . Level 3 . | . . . Level 4 . | . . . Level 5 . | . . . High Security . | . . . Max Security . | . . . Peak Influence 177 | 5 177 43 Initial 43 | . . 43 Average 83 | 1 94 43 Influence Increases 546 | 10 536 . Destroy 0b10 Robot/C 340 | . 340 . Destroy 0b10 Robot/NC 40 | 10 30 . Destroy Leader 76 | . 76 . Lose Combat Pursuer 90 | . 90 . Influence Decreases 503 | 10 432 61 Entered New Map 61 | . . 61 Time Decay 352 | 10 342 . Lost Part 90 | . 90 . Squads Dispatched 3 | . 3 . Investigation 2 | . 2 . Extermination . | . . . Reinforcement 1 | . 1 . Assault . | . . . Garrison . | . . . Intercept . | . . . Searches Triggered . | . . . Construction Impeded . | . . . Haulers Reinforced . | . . . Active Scanning Responses . | . . . Cargo Convoy Interrupts . | . . . Stealth | -11 -10 -9 --------- Run | Yrd Mat Mat Distress Signals 1 | . 1 . Communications Jammed . | . . . Distress Signals . | . . . Times Spotted 32 | . 32 . Peak Tracking Total 5 | . 5 . Tactical Retreats 4 | . 4 . Traps | -11 -10 -9 ------- Run | Yrd Mat Mat Traps Triggered 3 | . 3 . Indirectly . | . . . Trap Hack Attempts . | . . . Triggered . | . . . Disarmed . | . . . Reprogrammed . | . . . Reused . | . . . Traps Extracted . | . . . Installed . | . . . Triggered . | . . . Machines | -11 -10 -9 ---------- Run | Yrd Mat Mat Machines Disabled . | . . . Max in Single Turn . | . . . Machines Repaired . | . . . Machines Dismantled . | . . . Machines Sabotaged . | . . . Overloaded Fab Kills . | . . . Hacking | -11 -10 -9 --------- Run | Yrd Mat Mat Machines Accessed 1 | . 1 . Terminals 1 | . 1 . Fabricators . | . . . Repair Stations . | . . . Recycling Units . | . . . Scanalyzers . | . . . Garrison Access . | . . . Total Hacks 2 | . 2 . Successful 1 | . 1 . Failed 1 | . 1 . Catastrophic . | . . . Database Lockouts . | . . . Manual 2 | . 2 . Terminals 2 | . 2 . Fabricators . | . . . Repair Stations . | . . . Recycling Units . | . . . Scanalyzers . | . . . Garrison Access . | . . . Terminal Hacks . | . . . Fabricator Hacks . | . . . Repair Station Hacks . | . . . Recycling Unit Hacks . | . . . Scanalyzer . | . . . Garrison Access Hacks . | . . . Unauthorized Hacks 1 | . 1 . Terminals 1 | . 1 . Skim 1 | . 1 . Fabricators . | . . . Repair Stations . | . . . Recycling Units . | . . . Scanalyzers . | . . . Garrison Access . | . . . Data Cores Recovered . | . . . Used . | . . . Hacking Detections 1 | . 1 . Full Trace Events . | . . . Feedback Events . | . . . Feedback Blocked . | . . . Robot Schematics Acquired . | . . . Robots Built . | . . . Authchips . | . . . Time . | . . . Total Robot Build Rating . | . . . Part Schematics Acquired . | . . . Parts Built . | . . . Authchips . | . . . Time . | . . . Total Part Build Rating . | . . . Part Studies Acquired . | . . . Parts Repaired . | . . . Time . | . . . Parts Recycled . | . . . Recycled Matter . | . . . Retrieved Matter . | . . . Retrieved Components . | . . . Parts Scanalyzed . | . . . Part Schematics Acquired . | . . . Parts Damaged . | . . . Bothacking | -11 -10 -9 ------------ Run | Yrd Mat Mat Used RIF Installer . | . . . Robots Hacked . | . . . Non-combat . | . . . Combat . | . . . Robot Hacks Applied . | . . . Relay Couplers Released . | . . . Fabnet Peak Effective % . | . . . Robots Rewired . | . . . Allies Hacked . | . . . Hacks Repelled . | . . . Allies | -11 -10 -9 -------- Run | Yrd Mat Mat Total Allies . | . . . Largest Group . | . . . Highest-Rated Group . | . . . Highest-Rated Ally . | . . . Total Orders . | . . . Ally Attacks . | . . . Total Damage . | . . . Kills . | . . . Allies Corrupted . | . . . Allies Melted . | . . . Intel | -11 -10 -9 ------- Run | Yrd Mat Mat Active Infowar (turns) 825 | 36 789 . Seismic 825 | 36 789 . Robot Analysis Total . | . . . Derelict Logs Recovered . | . . . Drone Launches . | . . . Drone Recoveries . | . . . Exploration | -11 -10 -9 ------------- Run | Yrd Mat Mat Turns Passed 941 | 107 832 2 Spaces Moved 609 | 84 522 3 Core 32 | 3 26 3 Treads . | . . . Legs . | . . . Wheels 577 | 81 496 . Hover . | . . . Flight . | . . . Fastest Speed 50 | 50 50 50 Average Speed 94 | 88 95 50 Slowest Speed 115 | 90 115 50 Overloaded Moves . | . . . Propulsion Burnouts . | . . . Robots Hopped . | . . . Potential Cave-ins . | . . . Cave-ins Triggered . | . . . Exploration Rate (%) 27 | 4 76 3 Regions Visited 2 Branch Regions . Pre-discovered Areas . | . . . Known Exits Taken . | . . . Unknown Exits Taken 2 | 1 1 . Scrap Searched . | . . . Spaces Dug . | . . . Terrain Destroyed . | . . . Melee . | . . . Projectile . | . . . AOE . | . . . Terrain Rammed . | . . . Walls Destroyed . | . . . Machines Disabled . | . . . Actions | -11 -10 -9 --------- Run | Yrd Mat Mat Total 776 | 100 673 3 Wait 19 | . 19 . Move 608 | 84 521 3 Hop . | . . . Pick Up 10 | 2 8 . Fast Attach 9 | 7 2 . Attach 6 | . 6 . Detach . | . . . Swap 7 | . 7 . Drop . | . . . Fire 117 | 7 110 . Melee . | . . . Ram . | . . . Kick . | . . . Crush . | . . . Escape Stasis . | . . . Rewire . | . . . Trap . | . . . Miscellaneous . | . . . Route ------- -11/Scrapyard -10/Materials (discovered 5 exits: [*Mat x3] / [*Min x2]) -9/Materials History --------- Turn | Location | Event 7 | -11/Scrapyard | Discovered new exit (range 16) 108 | -11/Scrapyard | Entered Materials 143 | -10/Materials | Discovered new exit (range 6) 296 | -10/Materials | Discovered new exit (range 15) 301 | -10/Materials | Build established: Mutant 531 | -10/Materials | Discovered new exit (range 15) 621 | -10/Materials | Discovered new exit (range 8) 869 | -10/Materials | Lost 5 parts (1p1n1u2w) 902 | -10/Materials | Core integrity fell below 50% 921 | -10/Materials | Core integrity fell below 20% 928 | -10/Materials | Released all parts (4) 933 | -10/Materials | Discovered new exit (range 16) 940 | -10/Materials | Entered another Materials area 940 | -9/Materials | Evolved 2 slots: Weapon x2 942 | -9/Materials | Self-destructed Last Messages --------------- 00904_ G-34 Mercenary destroyed. 00905_ K-01 Serf collects debris. 00910_ Critical hit (Burn: +37). 00910_ K-01 Serf collects debris. 00914_ K-01 Serf destroyed. 00917_ K-01 Serf collects debris. 00920_ K-01 Serf cleans the Atomic Centrifuge. 00920_ Wheel destroyed. 00924_ Atomic Centrifuge disabled. 00924_ K-01 Serf collects debris. 00925_ G-47 Trooper destroyed. 00927_ K-01 Serf collects debris. 00928_ Released Seismic Detector. 00928_ Released Lgt. Assault Rifle. 00928_ Released Lrg. Storage Unit. 00933_ EXIT=FOUND PARAMETERS=WEAPON+2 LOCATION=UNKNOWN GOAL=ESCAPE 00941_ T-07 Excavator is excavating. Map ----- +----------------------------------------------------+ | | | | | | | | | | | | | | | | | | | | | | | | | ????????????????????????????????????????????? | | ????????????????????????????????????????????? | | ????????????????????????????????????????????? | | ????????????????????????????????????????????? | | ????????????????????????????????????????????? | | ????????????????????????????????????????????? | | ????????????????????????????????????????????? | | ????????????????##################??????????? | | ????????????????# #??????????? | | ????????????????# #??????????? | | ????????????????# #?????????? | | ????????????????# #??????????? | | ????????????????#### """ #??????????? | | ?????????????????#""@ """ |! #???????????? | | ?????????????????#"" """ | ??????????????? | | ?????????????????#"T ???????????????? | | ?????????????????#"" ??????????????? | | ?????????????????#"" """ ??????????????? | | ?????????????????### """ ?????????????? | | ???????????????????# """ o ????????????? | | ???????????????????# ?????????????? | | ???????????????????# ?? "T" ????????????? | | ???????????????????? ?????? ???????????? | | ???????????????????? ????????????????????? | | ????????????????????####????????????????????? | | ????????????????????????????????????????????? | | ????????????????????????????????????????????? | | ????????????????????????????????????????????? | | ????????????????????????????????????????????? | | ????????????????????????????????????????????? | | ????????????????????????????????????????????? | | ????????????????????????????????????????????? | | ????????????????????????????????????????????? | | ????????????????????????????????????????????? | | ????????????????????????????????????????????? | | ????????????????????????????????????????????? | | ????????????????????????????????????????????? | | ????????????????????????????????????????????? | +----------------------------------------------------+ Best States ------------- Heat Dissipation 25 Energy Generation 10 Energy Capacity 250 Matter Stores 300 Matter Capacity 300 Sight Range 16 Terrain Scan Density 10 Evasion (%) 50 Item Schematics ----------------- None Robot Schematics ------------------ None Fabricated ------------ Nothing Repaired ---------- Nothing Studied --------- None Alien Tech Used ----------------- None Achievements -------------- None Challenges ------------ None Game ------ Seed CoolantLegCrosscalibrator Manual? 0 Play Time 00:05:16 Cumulative 265.5 hours Start 2025.12.16 @ 11:28:17 End 2025.12.16 @ 11:33:29 Sessions 1 Manual Loads 0 Difficulty Rogue Special Mode None Game No. 151 Rogue 151 Adventurer 0 Explorer 0 Win Type - Total 33 Types 15/1/11/1/0/1/2/1/0/1 Lore% 84 Gallery% 73 Achievement% 60 Wizard Run 0 Options --------- Layout 1 ASCII 0 Keyboard 0 Movement Arrows Keybinds 0 Fullscreen 2 Font 24/Tamsyn Map View 50x35 Zoom Use 0% Tactical HUD 1 Map Filters NONE Filters NONE Steam 1 RUN: 72b948a7-6bb6-42a5-a204-e5185e0da787